fUSD/lending_fUSD_20250112
["ID","MTS","AMOUNT","RATE_DAILY","PERIOD"]
[348654907,1736700643811,-675.17,9.272e-05,2]
[348654909,1736700643822,-500.0,9.272e-05,2]
[348654911,1736700643831,-500.0,9.272e-05,2]
[348654913,1736700643841,-776.6,9.272e-05,2]
[348654915,1736700643850,-500.0,9.272e-05,2]
[348654917,1736700643860,-434.26354156,9.272e-05,2]
[348654919,1736700643869,-500.0,9.272e-05,2]
[348654921,1736700643879,-500.0,9.272e-05,2]
[348654923,1736700643888,-500.0,9.272e-05,2]
[348654925,1736700643898,-500.0,9.272e-05,2]
[348654927,1736700643907,-903.59,9.272e-05,2]
[348654962,1736700644352,-500.0,9.272e-05,2]
[348654965,1736700644373,-500.0,9.272e-05,2]
[348654967,1736700644384,-500.0,9.272e-05,2]
[348654968,1736700644393,-1097.27,9.272e-05,2]
[348654969,1736700644402,-500.0,9.272e-05,2]
[348654970,1736700644411,-612.54,9.272e-05,2]
[348654971,1736700644420,-506.96300698,9.272e-05,2]
[348654972,1736700644429,-565.39,9.272e-05,2]
[348654973,1736700644438,-2321.77,9.272e-05,2]
[348654974,1736700644447,-1025.55,9.272e-05,2]
[348654975,1736700644456,-500.0,9.272e-05,2]
[348654976,1736700644466,-500.0,9.272e-05,2]
[348654978,1736700644475,-2541.58,9.272e-05,2]
[348654979,1736700644484,-500.0,9.272e-05,2]
[348654981,1736700644494,-500.0,9.272e-05,2]
[348654983,1736700644503,-995.77,9.272e-05,2]
[348654986,1736700644514,-500.0,9.272e-05,2]
[348654988,1736700644524,-500.0,9.272e-05,2]
[348654990,1736700644533,-608.9075737,9.272e-05,2]
[348654992,1736700644542,-3146.03,9.272e-05,2]
[348654994,1736700644552,-2710.65,9.272e-05,2]
[348654995,1736700644562,-185.16656078,9.272e-05,2]
[348654997,1736700644571,-500.0,9.272e-05,2]
[348655000,1736700644581,-500.0,9.272e-05,2]
[348655002,1736700644590,-500.0,9.272e-05,2]
[348655004,1736700644599,-1355.79,9.272e-05,2]
[348655005,1736700644608,-2113.09,9.272e-05,2]
[348655007,1736700644620,-1050.88,9.272e-05,2]
[348655009,1736700644630,-500.0,9.272e-05,2]
[348655011,1736700644639,-1415.81,9.272e-05,2]
[348655013,1736700644648,-1645.06,9.272e-05,2]
[348655016,1736700644658,-520.74,9.272e-05,2]
[348655017,1736700644667,-1033.91,9.272e-05,2]
[348655019,1736700644676,-500.0,9.272e-05,2]
[348655021,1736700644686,-500.0,9.272e-05,2]
[348655023,1736700644695,-1289.53,9.272e-05,2]
[348655025,1736700644705,-836.1,9.272e-05,2]
[348655027,1736700644714,-969.41,9.272e-05,2]
[348655029,1736700644723,-500.0,9.272e-05,2]
[348655031,1736700644733,-506.19805776,9.272e-05,2]
[348655033,1736700644742,-3093.34,9.272e-05,2]
[348655035,1736700644751,-594.39,9.272e-05,2]
[348655038,1736700644761,-500.0,9.272e-05,2]
[348655040,1736700644770,-500.0,9.272e-05,2]
[348655041,1736700644779,-856.24,9.272e-05,2]
[348655044,1736700644790,-500.0,9.272e-05,2]
[348655046,1736700644799,-2376.04,9.272e-05,2]
[348655048,1736700644809,-500.0,9.272e-05,2]
[348655050,1736700644818,-561.47566473,9.272e-05,2]
[348655052,1736700644827,-502.9493649,9.272e-05,2]
[348655054,1736700644837,-500.0,9.272e-05,2]
[348655056,1736700644847,-500.0,9.272e-05,2]
[348655058,1736700644856,-524.5,9.272e-05,2]
[348655060,1736700644866,-500.0,9.272e-05,2]
[348655062,1736700644876,-500.0,9.272e-05,2]
[348655064,1736700644886,-974.18217287,9.272e-05,2]
[348655066,1736700644904,-924.90782713,9.272e-05,2]
[348655069,1736700644913,-500.0,9.272e-05,2]
[348655071,1736700644922,-708.5,9.272e-05,2]
[348655072,1736700644932,-1299.49,9.272e-05,2]
[348655074,1736700644943,-1078.58095787,9.272e-05,2]
[348655077,1736700644953,-10.39904213,9.272e-05,2]
[348655078,1736700644962,-500.0,9.272e-05,2]
[348655080,1736700644972,-925.99,9.272e-05,2]
[348655082,1736700644981,-500.0,9.272e-05,2]
[348655084,1736700644990,-3063.61095737,9.272e-05,2]
[348655089,1736700645027,-121.74904263,9.272e-05,2]
[348655091,1736700645036,-640.31,9.272e-05,2]
[348655093,1736700645046,-622.45,9.272e-05,2]
[348655095,1736700645055,-1270.35173178,9.272e-05,2]
[348655099,1736700645075,-557.40826822,9.272e-05,2]
[348655101,1736700645084,-500.0,9.272e-05,2]
[348655103,1736700645093,-606.95,9.272e-05,2]
[348655105,1736700645102,-545.89,9.272e-05,2]
[348655107,1736700645115,-500.0,9.272e-05,2]
[348655108,1736700645124,-413.29288192,9.272e-05,2]
[348655111,1736700645135,-372.84711808,9.272e-05,2]
[348655113,1736700645144,-833.22,9.272e-05,2]
[348655115,1736700645155,-1861.57,9.272e-05,2]
[348655117,1736700645164,-500.0,9.273e-05,2]
[348655119,1736700645173,-500.0,9.273e-05,2]
[348655121,1736700645183,-500.0,9.273e-05,2]
[348655122,1736700645192,-500.0,9.273e-05,2]
[348655124,1736700645201,-500.0,9.273e-05,2]
[348655127,1736700645211,-500.0,9.273e-05,2]
[348655129,1736700645220,-500.0,9.273e-05,2]
[348655131,1736700645230,-500.0,9.273e-05,2]
[348655133,1736700645240,-500.0,9.273e-05,2]
[348655136,1736700645249,-500.0,9.273e-05,2]
[348655138,1736700645259,-500.0,9.273e-05,2]
[348655140,1736700645269,-500.0,9.273e-05,2]
[348655142,1736700645279,-500.0,9.273e-05,2]
[348655144,1736700645289,-381.15370108,9.273e-05,2]
[348655146,1736700645298,-730.13,9.273e-05,2]
[348655148,1736700645307,-500.0,9.273e-05,2]
[348655150,1736700645317,-1651.99,9.273e-05,2]
[348655153,1736700645326,-500.0,9.273e-05,2]
[348655156,1736700645336,-500.0,9.273e-05,2]
[348655158,1736700645345,-500.0,9.273e-05,2]
[348655160,1736700645356,-500.0,9.273e-05,2]
[348655162,1736700645366,-500.0,9.273e-05,2]
[348655164,1736700645375,-500.0,9.273e-05,2]
[348655166,1736700645384,-500.0,9.273e-05,2]
[348655168,1736700645394,-1264.25,9.273e-05,2]
[348655169,1736700645403,-500.0,9.273e-05,2]
[348655172,1736700645413,-500.0,9.273e-05,2]
[348655173,1736700645422,-522.87747856,9.273e-05,2]
[348655175,1736700645432,-500.0,9.273e-05,2]
[348655177,1736700645441,-362.59647995,9.273e-05,2]
[348655180,1736700645452,-978.875677,9.273e-05,2]
[348655182,1736700645462,-500.0,9.273e-05,2]
[348655184,1736700645471,-500.0,9.273e-05,2]
[348655186,1736700645481,-500.0,9.273e-05,2]
[348655188,1736700645490,-500.0,9.273e-05,2]
[348655190,1736700645499,-500.0,9.273e-05,2]
[348655192,1736700645508,-395.10362437,9.273e-05,2]
[348655194,1736700645521,-104.89637563,9.273e-05,2]
[348655196,1736700645530,-500.0,9.273e-05,2]
[348655198,1736700645540,-505.77458135,9.273e-05,2]
[348655200,1736700645549,-501.96532679,9.273e-05,2]
[348655202,1736700645558,-500.0,9.273e-05,2]
[348655204,1736700645568,-2991.55171623,9.273e-05,2]
[348655235,1736700645860,-500.0,8.998e-05,2]
[348655237,1736700645870,-409.92,9.272e-05,2]
[348655239,1736700645880,-869.51828377,9.273e-05,2]
[348655241,1736700645889,-500.0,9.273e-05,2]
[348655243,1736700645900,-508.49426775,9.273e-05,2]
[348655245,1736700645910,-5.09062914,9.273e-05,2]
[348655248,1736700645928,-936.29741186,9.273e-05,2]
[348655250,1736700645938,-500.0,9.273e-05,2]
[348655252,1736700645947,-500.0,9.273e-05,2]
[348655254,1736700645956,-944.82,9.273e-05,2]
[348655256,1736700645965,-500.0,9.273e-05,2]
[348655258,1736700645974,-500.0,9.273e-05,2]
[348655260,1736700645985,-500.0,9.273e-05,2]
[348655262,1736700645994,-500.0,9.273e-05,2]
[348655264,1736700646003,-1010.28,9.273e-05,2]
[348655266,1736700646013,-500.0,9.273e-05,2]
[348655268,1736700646022,-501.9587472,9.273e-05,2]
[348655270,1736700646031,-597.28,9.273e-05,2]
[348655272,1736700646041,-442.7834899,9.273e-05,2]
[348655274,1736700646051,-500.0,9.273e-05,2]
[348655276,1736700646060,-500.0,9.273e-05,2]
[348655278,1736700646069,-500.0,9.273e-05,2]
[348655280,1736700646079,-500.0,9.273e-05,2]
[348655282,1736700646088,-500.0,9.273e-05,2]
[348655284,1736700646098,-500.0,9.273e-05,2]
[348655286,1736700646111,-500.0,9.273e-05,2]
[348655288,1736700646120,-500.0,9.273e-05,2]
[348655290,1736700646129,-505.84222083,9.273e-05,2]
[348655292,1736700646139,-500.0,9.273e-05,2]
[348655294,1736700646148,-535.96791425,9.273e-05,2]
[348655296,1736700646158,-978.99,9.273e-05,2]
[348655298,1736700646167,-500.0,9.273e-05,2]
[348655300,1736700646176,-574.1,9.273e-05,2]
[348655302,1736700646186,-500.0,9.273e-05,2]
[348655304,1736700646196,-500.0,9.273e-05,2]
[348655306,1736700646205,-500.0,9.273e-05,2]
[348655308,1736700646214,-500.0,9.273e-05,2]
[348655310,1736700646224,-500.0,9.273e-05,2]
[348655312,1736700646235,-500.0,9.273e-05,2]
[348655314,1736700646245,-500.0,9.273e-05,2]
[348655316,1736700646254,-500.0,9.273e-05,2]
[348655318,1736700646264,-500.0,9.273e-05,2]
[348655320,1736700646273,-500.0,9.273e-05,2]
[348655322,1736700646284,-500.0,9.273e-05,2]
[348655324,1736700646294,-790.29,9.273e-05,2]
[348655325,1736700646303,-500.0,9.273e-05,2]
[348655328,1736700646314,-500.0,9.273e-05,2]
[348655330,1736700646323,-500.0,9.273e-05,2]
[348655331,1736700646333,-500.0,9.273e-05,2]
[348655334,1736700646343,-500.0,9.273e-05,2]
[348655336,1736700646353,-500.0,9.273e-05,2]
[348655338,1736700646363,-500.0,9.273e-05,2]
[348655340,1736700646372,-826.32,9.273e-05,2]
[348655342,1736700646381,-816.75,9.273e-05,2]
[348655344,1736700646390,-500.0,9.273e-05,2]
[348655346,1736700646400,-500.0,9.273e-05,2]
[348655348,1736700646409,-500.0,9.273e-05,2]
[348655350,1736700646419,-500.0,9.273e-05,2]
[348655352,1736700646429,-500.0,9.273e-05,2]
[348655354,1736700646438,-625.83,9.273e-05,2]
[348655356,1736700646448,-506.28537832,9.273e-05,2]
[348655358,1736700646458,-596.66262418,9.273e-05,2]
[348655360,1736700646467,-655.22,9.273e-05,2]
[348655362,1736700646476,-500.0,9.273e-05,2]
[348655364,1736700646486,-500.0,9.273e-05,2]
[348655366,1736700646495,-500.0,9.273e-05,2]
[348655368,1736700646505,-3719.64,9.273e-05,2]
[348655370,1736700646514,-659.3,9.273e-05,2]
[348655372,1736700646523,-500.0,9.273e-05,2]
[348655374,1736700646532,-500.0,9.273e-05,2]
[348655376,1736700646542,-500.0,9.273e-05,2]
[348655378,1736700646551,-500.0,9.273e-05,2]
[348655380,1736700646560,-500.0,9.273e-05,2]
[348655381,1736700646570,-500.0,9.273e-05,2]
[348655383,1736700646579,-500.0,9.273e-05,2]
[348655385,1736700646589,-500.0,9.273e-05,2]
[348655388,1736700646598,-500.0,9.273e-05,2]
[348655390,1736700646608,-500.0,9.273e-05,2]
[348655392,1736700646617,-500.0,9.273e-05,2]
[348655394,1736700646626,-500.0,9.273e-05,2]
[348655396,1736700646635,-500.0,9.273e-05,2]
[348655398,1736700646645,-500.0,9.273e-05,2]
[348655400,1736700646654,-500.0,9.273e-05,2]
[348655402,1736700646664,-507.22222886,9.273e-05,2]
[348655404,1736700646673,-500.0,9.273e-05,2]
[348655406,1736700646683,-516.68,9.273e-05,2]
[348655408,1736700646692,-500.0,9.273e-05,2]
[348655409,1736700646702,-500.0,9.273e-05,2]
[348655412,1736700646711,-500.0,9.273e-05,2]
[348655414,1736700646720,-500.0,9.273e-05,2]
[348655416,1736700646730,-500.0,9.273e-05,2]
[348655418,1736700646739,-503.74050456,9.273e-05,2]
[348655420,1736700646749,-500.0,9.273e-05,2]
[348655422,1736700646759,-500.0,9.273e-05,2]
[348655423,1736700646768,-610.16,9.273e-05,2]
[348655425,1736700646777,-500.0,9.273e-05,2]
[348655426,1736700646787,-500.0,9.273e-05,2]
[348655427,1736700646796,-500.0,9.273e-05,2]
[348655428,1736700646806,-500.0,9.273e-05,2]
[348655429,1736700646815,-500.0,9.273e-05,2]
[348655430,1736700646825,-544.28,9.273e-05,2]
[348655431,1736700646834,-500.0,9.273e-05,2]
[348655432,1736700646844,-500.0,9.273e-05,2]
[348655433,1736700646853,-500.0,9.273e-05,2]
[348655435,1736700646862,-500.0,9.273e-05,2]
[348655436,1736700646872,-1214.34,9.273e-05,2]
[348655438,1736700646881,-553.68,9.273e-05,2]
[348655439,1736700646890,-500.0,9.273e-05,2]
[348655440,1736700646900,-586.59166711,9.273e-05,2]
[348655441,1736700646909,-500.0,9.273e-05,2]
[348655442,1736700646919,-815.64,9.273e-05,2]
[348655443,1736700646928,-500.0,9.273e-05,2]
[348655444,1736700646937,-500.0,9.273e-05,2]
[348655445,1736700646947,-684.62,9.273e-05,2]
[348655446,1736700646956,-500.0,9.273e-05,2]
[348655447,1736700646966,-500.0,9.273e-05,2]
[348655448,1736700646976,-500.0,9.273e-05,2]
[348655449,1736700646986,-500.0,9.273e-05,2]
[348655451,1736700646995,-500.0,9.273e-05,2]
[348655453,1736700647004,-500.0,9.273e-05,2]
[348655454,1736700647014,-500.0,9.273e-05,2]
[348655455,1736700647023,-500.0,9.273e-05,2]
[348655456,1736700647033,-932.52,9.273e-05,2]
[348655457,1736700647043,-500.0,9.273e-05,2]
[348655458,1736700647054,-500.0,9.273e-05,2]
[348655459,1736700647065,-500.0,9.273e-05,2]
[348655460,1736700647074,-500.0,9.273e-05,2]
[348655461,1736700647083,-625.7,9.273e-05,2]
[348655462,1736700647092,-500.0,9.273e-05,2]
[348655463,1736700647103,-500.0,9.273e-05,2]
[348655464,1736700647115,-721.16,9.273e-05,2]
[348655465,1736700647125,-797.42,9.273e-05,2]
[348655466,1736700647139,-500.0,9.273e-05,2]
[348655467,1736700647150,-617.87,9.273e-05,2]
[348655468,1736700647161,-500.0,9.273e-05,2]
[348655469,1736700647171,-500.0,9.273e-05,2]
[348655470,1736700647181,-500.0,9.273e-05,2]
[348655471,1736700647375,-500.0,9.273e-05,2]
[348655472,1736700647397,-500.0,9.273e-05,2]
[348655473,1736700647406,-500.0,9.273e-05,2]
[348655474,1736700647415,-500.0,9.273e-05,2]
[348655475,1736700647425,-500.0,9.273e-05,2]
[348655476,1736700647434,-500.0,9.273e-05,2]
[348655477,1736700647444,-779.4,9.273e-05,2]
[348655478,1736700647453,-500.0,9.273e-05,2]
[348655479,1736700647463,-500.0,9.273e-05,2]
[348655480,1736700647472,-500.0,9.273e-05,2]
[348655481,1736700647481,-500.0,9.273e-05,2]
[348655482,1736700647491,-319.18815056,9.273e-05,2]
[348655483,1736700647501,-500.0,9.273e-05,2]
[348655484,1736700647511,-756.66,9.273e-05,2]
[348655485,1736700647520,-500.0,9.273e-05,2]
[348655486,1736700647529,-500.0,9.273e-05,2]
[348655487,1736700647538,-500.0,9.273e-05,2]
[348655488,1736700647548,-500.0,9.273e-05,2]
[348655489,1736700647557,-527.36,9.273e-05,2]
[348655490,1736700647566,-500.0,9.273e-05,2]
[348655491,1736700647576,-566.83,9.273e-05,2]
[348655492,1736700647585,-500.0,9.273e-05,2]
[348655493,1736700647594,-500.0,9.273e-05,2]
[348655494,1736700647603,-500.0,9.273e-05,2]
[348655495,1736700647612,-500.0,9.273e-05,2]
[348655496,1736700647621,-507.66,9.273e-05,2]
[348655497,1736700647630,-500.0,9.273e-05,2]
[348655498,1736700647639,-500.0,9.273e-05,2]
[348655499,1736700647649,-500.0,9.273e-05,2]
[348655500,1736700647658,-500.0,9.273e-05,2]
[348655501,1736700647667,-500.0,9.273e-05,2]
[348655502,1736700647676,-500.0,9.273e-05,2]
[348655503,1736700647686,-500.0,9.273e-05,2]
[348655504,1736700647695,-502.27842645,9.273e-05,2]
[348655505,1736700647705,-1148.17,9.273e-05,2]
[348655506,1736700647714,-500.0,9.273e-05,2]
[348655507,1736700647723,-500.0,9.273e-05,2]
[348655508,1736700647733,-500.0,9.273e-05,2]
[348655509,1736700647743,-500.0,9.273e-05,2]
[348655510,1736700647752,-697.58,9.273e-05,2]
[348655511,1736700647762,-510.3525632,9.273e-05,2]
[348655512,1736700647771,-500.0,9.273e-05,2]
[348655513,1736700647780,-500.0,9.273e-05,2]
[348655514,1736700647790,-500.0,9.273e-05,2]
[348655515,1736700647799,-500.0,9.273e-05,2]
[348655516,1736700647809,-640.34,9.273e-05,2]
[348655517,1736700647818,-1565.32,9.273e-05,2]
[348655518,1736700647827,-500.0,9.273e-05,2]
[348655519,1736700647838,-500.0,9.273e-05,2]
[348655520,1736700647848,-641.6,9.273e-05,2]
[348655521,1736700647857,-500.0,9.273e-05,2]
[348655522,1736700647866,-500.0,9.273e-05,2]
[348655523,1736700647875,-500.0,9.273e-05,2]
[348655524,1736700647884,-500.0,9.273e-05,2]
[348655525,1736700647894,-673.33,9.273e-05,2]
[348655526,1736700647903,-500.0,9.273e-05,2]
[348655527,1736700647912,-1691.98,9.273e-05,2]
[348655528,1736700647921,-500.0,9.273e-05,2]
[348655529,1736700647931,-500.0,9.273e-05,2]
[348655530,1736700647940,-844.22,9.273e-05,2]
[348655531,1736700647949,-500.0,9.273e-05,2]
[348655532,1736700647959,-995.13,9.273e-05,2]
[348655533,1736700647969,-500.0,9.273e-05,2]
[348655534,1736700647978,-500.0,9.273e-05,2]
[348655535,1736700647987,-500.0,9.273e-05,2]
[348655536,1736700647997,-500.0,9.273e-05,2]
[348655537,1736700648006,-500.0,9.273e-05,2]
[348655538,1736700648015,-500.0,9.273e-05,2]
[348655539,1736700648025,-500.0,9.273e-05,2]
[348655540,1736700648035,-1416.54,9.273e-05,2]
[348655541,1736700648044,-500.0,9.273e-05,2]
[348655542,1736700648053,-500.0,9.273e-05,2]
[348655543,1736700648065,-500.0,9.273e-05,2]
[348655544,1736700648075,-500.0,9.273e-05,2]
[348655545,1736700648084,-505.78295507,9.273e-05,2]
[348655546,1736700648094,-500.0,9.273e-05,2]
[348655547,1736700648103,-500.0,9.273e-05,2]
[348655548,1736700648116,-500.0,9.273e-05,2]
[348655549,1736700648126,-500.0,9.273e-05,2]
[348655550,1736700648135,-500.0,9.273e-05,2]
[348655551,1736700648145,-500.0,9.273e-05,2]
[348655552,1736700648154,-500.0,9.273e-05,2]
[348655553,1736700648164,-609.49,9.273e-05,2]
[348655554,1736700648174,-500.0,9.273e-05,2]
[348655555,1736700648184,-535.32,9.273e-05,2]
[348655556,1736700648195,-1156.26,9.273e-05,2]
[348655557,1736700648204,-3288.63,9.273e-05,2]
[348655558,1736700648214,-500.0,9.273e-05,2]
[348655559,1736700648223,-500.0,9.273e-05,2]
[348655560,1736700648234,-500.0,9.273e-05,2]
[348655561,1736700648244,-951.77,9.273e-05,2]
[348655562,1736700648253,-503.99167107,9.273e-05,2]
[348655563,1736700648263,-500.0,9.273e-05,2]
[348655564,1736700648273,-500.0,9.273e-05,2]
[348655565,1736700648282,-500.0,9.273e-05,2]
[348655566,1736700648292,-1332.25,9.273e-05,2]
[348655567,1736700648302,-500.0,9.273e-05,2]
[348655568,1736700648312,-1266.62,9.273e-05,2]
[348655569,1736700648321,-1123.73,9.273e-05,2]
[348655570,1736700648331,-500.0,9.273e-05,2]
[348655571,1736700648341,-500.0,9.273e-05,2]
[348655572,1736700648351,-500.0,9.273e-05,2]
[348655573,1736700648361,-500.0,9.273e-05,2]
[348655574,1736700648371,-500.0,9.273e-05,2]
[348655575,1736700648381,-500.0,9.273e-05,2]
[348655576,1736700648391,-500.0,9.273e-05,2]
[348655577,1736700648401,-615.79989313,9.273e-05,2]
[348655578,1736700648411,-502.85705948,9.273e-05,2]
[348655579,1736700648421,-649.23,9.273e-05,2]
[348655580,1736700648431,-3743.22,9.273e-05,2]
[348655581,1736700648440,-500.0,9.273e-05,2]
[348655582,1736700648450,-500.0,9.273e-05,2]
[348655583,1736700648459,-500.0,9.273e-05,2]
[348655584,1736700648468,-500.0,9.273e-05,2]
[348655585,1736700648478,-500.0,9.273e-05,2]
[348655586,1736700648488,-500.0,9.273e-05,2]
[348655587,1736700648498,-150.36453548,9.273e-05,2]
[348655588,1736700648508,-500.0,9.273e-05,2]
[348655589,1736700648517,-500.0,9.273e-05,2]
[348655590,1736700648526,-500.0,9.273e-05,2]
[348655591,1736700648535,-500.0,9.273e-05,2]
[348655592,1736700648544,-505.15835908,9.273e-05,2]
[348655593,1736700648554,-500.0,9.273e-05,2]
[348655594,1736700648564,-681.51,9.273e-05,2]
[348655595,1736700648573,-502.0638164,9.273e-05,2]
[348655596,1736700648582,-500.0,9.273e-05,2]
[348655597,1736700648592,-4103.02,9.273e-05,2]
[348655598,1736700648601,-500.0,9.273e-05,2]
[348655599,1736700648610,-500.0,9.273e-05,2]
[348655600,1736700648619,-500.0,9.273e-05,2]
[348655601,1736700648630,-504.95834196,9.273e-05,2]
[348655602,1736700648639,-501.25178878,9.273e-05,2]
[348655603,1736700648649,-527.25,9.273e-05,2]
[348655604,1736700648659,-500.0,9.273e-05,2]
[348655605,1736700648668,-302.10560383,9.273e-05,2]
[348655606,1736700648679,-500.0,9.273e-05,2]
[348655607,1736700648688,-500.0,9.273e-05,2]
[348655608,1736700648699,-500.0,9.273e-05,2]
[348655609,1736700648709,-509.94414278,9.273e-05,2]
[348655610,1736700648719,-161.79342201,9.273e-05,2]
[348655611,1736700648729,-500.0,9.273e-05,2]
[348655612,1736700648739,-839.98,9.273e-05,2]
[348655613,1736700648748,-500.0,9.273e-05,2]
[348655614,1736700648758,-500.0,9.273e-05,2]
[348655615,1736700648767,-590.01,9.273e-05,2]
[348655616,1736700648777,-500.0,9.273e-05,2]
[348655617,1736700648786,-500.0,9.273e-05,2]
[348655618,1736700648796,-500.0,9.273e-05,2]
[348655619,1736700648806,-349.87676157,9.273e-05,2]
[348655620,1736700648816,-3566.43,9.273e-05,2]
[348655621,1736700648826,-500.0,9.273e-05,2]
[348655622,1736700648835,-500.0,9.273e-05,2]
[348655623,1736700648845,-587.33,9.273e-05,2]
[348655624,1736700648855,-2261.67,9.273e-05,2]
[348655625,1736700648865,-500.0,9.273e-05,2]
[348655626,1736700648875,-500.0,9.273e-05,2]
[348655627,1736700648885,-500.0,9.273e-05,2]
[348655628,1736700648894,-932.25,9.273e-05,2]
[348655629,1736700648904,-500.0,9.273e-05,2]
[348655630,1736700648914,-500.0,9.273e-05,2]
[348655631,1736700648924,-500.0,9.273e-05,2]
[348655632,1736700648933,-500.0,9.273e-05,2]
[348655633,1736700648943,-500.0,9.273e-05,2]
[348655634,1736700648952,-500.0,9.273e-05,2]
[348655635,1736700648961,-41258.13489817,9.276e-05,2]
[348655636,1736700648971,-500.0,9.335e-05,2]
[348655637,1736700648980,-750.02,9.335e-05,2]
[348655638,1736700648990,-802.17,9.335e-05,2]
[348655639,1736700648999,-500.0,9.335e-05,2]
[348655640,1736700649009,-500.0,9.335e-05,2]
[348655641,1736700649018,-500.0,9.335e-05,2]
[348655642,1736700649028,-500.0,9.335e-05,2]
[348655643,1736700649037,-534.42,9.335e-05,2]
[348655644,1736700649047,-519.7,9.335e-05,2]
[348655645,1736700649056,-500.0,9.335e-05,2]
[348655646,1736700649067,-871.26,9.335e-05,2]
[348655647,1736700649076,-500.0,9.335e-05,2]
[348655648,1736700649086,-589.74159437,9.335e-05,2]
[348655649,1736700649095,-500.0,9.335e-05,2]
[348655650,1736700649105,-500.0,9.335e-05,2]
[348655651,1736700649118,-500.0,9.335e-05,2]
[348655652,1736700649128,-500.0,9.335e-05,2]
[348655653,1736700649138,-500.0,9.335e-05,2]
[348655654,1736700649147,-500.0,9.335e-05,2]
[348655655,1736700649159,-854.85,9.335e-05,2]
[348655656,1736700649168,-500.0,9.335e-05,2]
[348655657,1736700649178,-500.0,9.335e-05,2]
[348655658,1736700649189,-500.0,9.335e-05,2]
[348655659,1736700649199,-500.0,9.335e-05,2]
[348655660,1736700649210,-500.0,9.335e-05,2]
[348655661,1736700649220,-500.0,9.335e-05,2]
[348655662,1736700649230,-835.94,9.335e-05,2]
[348655663,1736700649241,-500.0,9.335e-05,2]
[348655664,1736700649251,-500.0,9.335e-05,2]
[348655665,1736700649261,-714.45,9.335e-05,2]
[348655666,1736700649270,-588.61,9.335e-05,2]
[348655667,1736700649281,-423.33823529,9.335e-05,2]
[348655668,1736700649290,-500.51172738,9.335e-05,2]
[348655669,1736700649300,-652.98,9.335e-05,2]
[348655670,1736700649310,-502.69811503,9.335e-05,2]
[348655671,1736700649320,-500.0,9.335e-05,2]
[348655672,1736700649330,-549.09,9.335e-05,2]
[348655673,1736700649340,-500.0,9.335e-05,2]
[348655674,1736700649350,-500.0,9.335e-05,2]
[348655675,1736700649360,-4943.86,9.335e-05,2]
[348655676,1736700649369,-688.45,9.335e-05,2]
[348655677,1736700649379,-3443.63,9.335e-05,2]
[348655678,1736700649389,-710.84,9.335e-05,2]
[348655679,1736700649398,-500.0,9.335e-05,2]
[348655680,1736700649408,-1074.26,9.335e-05,2]
[348655681,1736700649417,-3653.37,9.335e-05,2]
[348655682,1736700649427,-880.69,9.335e-05,2]
[348655683,1736700649436,-500.0,9.335e-05,2]
[348655684,1736700649447,-896.33,9.335e-05,2]
[348655685,1736700649457,-1087.03,9.335e-05,2]
[348655686,1736700649466,-242.49,9.335e-05,2]
[348655687,1736700649475,-500.0,9.46e-05,2]
[348655688,1736700649485,-738.81,9.546e-05,2]
[348655689,1736700649495,-500.0,9.546e-05,2]
[348655690,1736700649504,-999.9,9.546e-05,2]
[348655691,1736700649513,-658.7,9.546e-05,2]
[348655692,1736700649522,-852.49,9.546e-05,2]
[348655693,1736700649531,-563.58,9.546e-05,2]
[348655694,1736700649541,-500.0,9.546e-05,2]
[348655695,1736700649550,-500.0,9.546e-05,2]
[348655696,1736700649559,-500.0,9.546e-05,2]
[348655697,1736700649568,-690.64,9.546e-05,2]
[348655698,1736700649577,-500.0,9.546e-05,2]
[348655699,1736700649587,-500.0,9.546e-05,2]
[348655700,1736700649596,-857.17,9.546e-05,2]